[Event "Irish International Open 2019"]
[Site "Dublin"]
[Date "2019.04.21"]
[Round "7.27"]
[White "Abul Kalam, Azad Lilu"]
[Black "Hafstad, Leif"]
[Result "1-0"]
[ECO "B40"]
[WhiteElo "1951"]
[BlackElo "1857"]
[Annotator "NA"]
[PlyCount "93"]
[EventDate "2019.02.28"]
[EventType "swiss"]
[EventCountry "IRL"]
[SourceTitle "playchess.com"]
[Source "ChessBase"]
[SourceQuality "1"]
[TimeControl "5400+30"]

1. e4 {[%emt 0:00:00]} c5 {[%emt 0:00:00]} 2. Nf3 {[%emt 0:00:01]} e6 {[%emt 0:00:12]} 3. c3 {[%emt 0:04:33]} Nf6 {[%emt 0:03:12]} 4. d3 {[%emt 0:01:18]} Nc6 {[%emt 0:02:12]} 5. Na3 {[%emt 0:00:28]} d5 {[%emt 0:02:39]} 6. Bg5 {[%emt 0:06:58]} Be7 {[%emt 0:03:43]} 7. e5 {[%emt 0:02:08]} Nd7 {[%emt 0:00:34]} 8. Bxe7 {[%emt 0:00:13]} Nxe7 {[%emt 0:00:34]} 9. d4 {[%emt 0:01:04]} a6 {[%emt 0:01:47]} 10. Be2 {[%emt 0:04:19]} O-O {[%emt 0:04:05]} 11. Qd2 {[%emt 0:03:56]} cxd4 {[%emt 0:02:22]} 12. cxd4 {[%emt 0:00:19]} f6 {[%emt 0:02:58]} 13. exf6 {[%emt 0:01:24]} Nxf6 {[%emt 0:00:51]} 14. Bd3 {[%emt 0:01:13]} Nf5 {[%emt 0:02:14]} 15. Nc2 {[%emt 0:01:08]} Qd6 {[%emt 0:05:52]} 16. O-O {[%emt 0:00:48]} Bd7 {[%emt 0:15:49]} 17. a4 {[%emt 0:02:45]} Rac8 {[%emt 0:09:11]} 18. Rfe1 {[%emt 0:01:12]} Be8 {[%emt 0:09:31]} 19. h3 {[%emt 0:02:21]} Bf7 {[%emt 0:11:11]} 20. b4 {[%emt 0:01:56]} Qc7 {[%emt 0:02:35]} 21. Rac1 {[%emt 0:12:20]} Qc3 {[%emt 0:02:16]} 22. Qe2 {[%emt 0:03:14]} Rfe8 {[%emt 0:01:18]} 23. b5 {[%emt 0:08:40]} Nh5 {[%emt 0:02:20]} 24. g3 {[%emt 0:03:37]} Bg6 {[%emt 0:02:06]} 25. Red1 {[%emt 0:04:34]} axb5 {[%emt 0:02:56]} 26. axb5 {[%emt 0:00:13]} Nfxg3 {[%emt 0:02:00]} 27. fxg3 {[%emt 0:32:48]} Nxg3 {[%emt 0:09:02]} 28. Qe3 {[%emt 0:00:00]} Bxd3 {[%emt 0:00:00]} 29. Rxd3 {[%emt 0:00:00]} Qb2 {[%emt 0:00:00]} 30. Kg2 {[%emt 0:00:00]} Ne4 {[%emt 0:00:00]} 31. Nfe1 {[%emt 0:00:00]} Rf8 {[%emt 0:00:00]} 32. Kg1 {[%emt 0:00:00]} Nc3 {[%emt 0:00:04]} 33. Ra1 {[%emt 0:00:00]} Rf6 {[%emt 0:00:25]} 34. Ra3 {[%emt 0:00:00]} Qxb5 {[%emt 0:01:36]} 35. Raxc3 {[%emt 0:00:00]} Rxc3 {[%emt 0:00:08]} 36. Rxc3 {[%emt 0:00:00]} Qf1+ {[%emt 0:00:09]} 37. Kh2 {[%emt 0:00:09]} Rf2+ {[%emt 0:00:34]} 38. Kg3 {[%emt 0:00:12]} Rf6 {[%emt 0:00:47]} 39. Nf3 {[%emt 0:02:16]} h6 {[%emt 0:00:44]} 40. Ne5 {[%emt 0:01:06]} Rf5 {[%emt 0:00:57]} 41. Ne1 {[%emt 0:01:08]} Rg5+ {[%emt 0:00:14]} 42. Ng4 {[%emt 0:00:17]} Kh7 {[%emt 0:00:43]} 43. Nf3 {[%emt 0:00:34]} Rf5 {[%emt 0:00:16]} 44. Qxe6 {[%emt 0:00:24]} Rh5 {[%emt 0:00:45]} 45. Nf6+ {[%emt 0:00:57]} gxf6 {[%emt 0:00:17]} 46. Qf7+ {[%emt 0:00:13]} Kh8 {[%emt 0:00:05]} 47. Rc8# {[%emt 0:00:07]} 1-0

[Event "Irish International Open 2019"]
[Site "Dublin"]
[Date "2019.04.21"]
[Round "8.1"]
[White "Ruck, Robert"]
[Black "Burg, Twan"]
[Result "1/2-1/2"]
[ECO "D37"]
[WhiteElo "2522"]
[BlackElo "2519"]
[Annotator "ChessBase"]
[PlyCount "40"]
[EventDate "2019.02.28"]
[EventType "swiss"]
[EventCountry "IRL"]
[SourceTitle "playchess.com"]
[Source "ChessBase"]
[SourceQuality "1"]
[TimeControl "5400+30"]

1. Nf3 {[%emt 0:00:00]} d5 {[%emt 0:00:00]} 2. d4 {[%emt 0:00:00]} Nf6 {[%emt 0:00:00]} 3. c4 {[%emt 0:00:00]} e6 {[%emt 0:00:00]} 4. Nc3 {[%emt 0:00:03]} Be7 {[%emt 0:00:00]} 5. Bf4 {[%emt 0:00:46]} O-O {[%emt 0:00:00]} 6. e3 {[%emt 0:00:09]} Nbd7 {[%emt 0:00:03]} 7. c5 {[%emt 0:07:35]} Ne4 {[%emt 0:00:14]} 8. Nxe4 {[%emt 0:00:43]} dxe4 {[%emt 0:00:06]} 9. Ne5 {[%emt 0:00:04]} Nxe5 {[%emt 0:00:30]} 10. Bxe5 {[%emt 0:00:06]} Bd7 {[%emt 0:00:07]} 11. Bc4 {[%emt 0:01:31]} Bc6 {[%emt 0:00:18]} 12. Qg4 {[%emt 0:14:08]} Bf6 {[%emt 0:00:51]} 13. Qg3 {[%emt 0:03:53]} Bxe5 {[%emt 0:00:43]} 14. Qxe5 {[%emt 0:00:05]} Bd5 {[%emt 0:00:27]} 15. Rc1 {[%emt 0:03:05]} f6 {[%emt 0:05:17]} 16. Qh5 {[%emt 0:00:11]} c6 {[%emt 0:00:36]} 17. Qe2 {[%emt 0:04:56]} f5 {[%emt 0:01:19]} 18. g3 {[%emt 0:00:40]} Qf6 {[%emt 0:01:06]} 19. Bxd5 {[%emt 0:01:33]} exd5 {[%emt 0:00:17]} 20. h4 {[%emt 0:02:08]} Rf7 {[%emt 0:01:05]} 1/2-1/2

[Event "Irish International Open 2019"]
[Site "Dublin"]
[Date "2019.04.21"]
[Round "8.2"]
[White "Strikovic, Aleksa"]
[Black "Larino Nieto, David"]
[Result "1/2-1/2"]
[ECO "A13"]
[WhiteElo "2493"]
[BlackElo "2434"]
[Annotator "ChessBase"]
[PlyCount "72"]
[EventDate "2019.02.28"]
[EventType "swiss"]
[EventCountry "IRL"]
[SourceTitle "playchess.com"]
[Source "ChessBase"]
[SourceQuality "1"]
[TimeControl "5400+30"]

1. c4 {[%emt 0:08:49]} e6 {[%emt 0:08:28]} 2. Nf3 {[%emt 0:00:13]} g5 {[%emt 0:00:16]} 3. d4 {[%emt 0:03:45]} h6 {[%emt 0:00:08]} 4. Nc3 {[%emt 0:00:22]} Bg7 {[%emt 0:00:28]} 5. g3 {[%emt 0:01:36]} Nc6 {[%emt 0:03:32]} 6. d5 {[%emt 0:00:17]} Ne5 {[%emt 0:02:47]} 7. Nxe5 {[%emt 0:01:00]} Bxe5 {[%emt 0:01:30]} 8. Bg2 {[%emt 0:00:46]} Ne7 {[%emt 0:07:25]} 9. Qd3 {[%emt 0:02:38]} exd5 {[%emt 0:04:53]} 10. cxd5 {[%emt 0:01:03]} d6 {[%emt 0:01:05]} 11. h4 {[%emt 0:01:30]} g4 {[%emt 0:01:17]} 12. h5 {[%emt 0:00:14]} a6 {[%emt 0:03:57]} 13. Bf4 {[%emt 0:04:27]} Bg7 {[%emt 0:02:02]} 14. Rc1 {[%emt 0:05:46]} O-O {[%emt 0:00:59]} 15. Qd2 {[%emt 0:00:21]} Kh7 {[%emt 0:00:20]} 16. Be4+ {[%emt 0:00:06]} f5 {[%emt 0:00:06]} 17. Bb1 {[%emt 0:00:04]} Ng8 {[%emt 0:05:30]} 18. Nd1 {[%emt 0:02:15]} Rf7 {[%emt 0:06:27]} 19. Ne3 {[%emt 0:08:50]} Kh8 {[%emt 0:00:05]} 20. Ng2 {[%emt 0:05:46]} Bd7 {[%emt 0:06:45]} 21. Nh4 {[%emt 0:01:21]} Rc8 {[%emt 0:00:13]} 22. Kf1 {[%emt 0:03:03]} Qf6 {[%emt 0:00:53]} 23. b3 {[%emt 0:03:48]} Ne7 {[%emt 0:02:49]} 24. Kg2 {[%emt 0:03:46]} c6 {[%emt 0:01:51]} 25. Ng6+ {[%emt 0:12:05]} Kh7 {[%emt 0:00:09]} 26. e4 {[%emt 0:00:35]} Nxg6 {[%emt 0:15:10]} 27. hxg6+ {[%emt 0:00:02]} Qxg6 {[%emt 0:00:07]} 28. dxc6 {[%emt 0:01:20]} Rxc6 {[%emt 0:00:53]} 29. exf5 {[%emt 0:07:15]} Bxf5 {[%emt 0:00:01]} 30. Rxc6 {[%emt 0:00:43]} bxc6 {[%emt 0:04:01]} 31. Bxf5 {[%emt 0:00:32]} Rxf5 {[%emt 0:04:40]} 32. Qxd6 {[%emt 0:00:07]} Rf6 {[%emt 0:00:20]} 33. Qb4 {[%emt 0:02:21]} c5 {[%emt 0:02:27]} 34. Qc4 {[%emt 0:00:40]} Re6 {[%emt 0:00:46]} 35. Qd5 {[%emt 0:02:53]} Re2 {[%emt 0:02:33]} 36. Be3 {[%emt 0:00:05]} Rxa2 {[%emt 0:03:01]} 1/2-1/2

[Event "Irish International Open 2019"]
[Site "Dublin"]
[Date "2019.04.21"]
[Round "8.3"]
[White "Jovanic, Ognjen"]
[Black "Hovhannisyan, Mher"]
[Result "1/2-1/2"]
[ECO "D02"]
[WhiteElo "2515"]
[BlackElo "2462"]
[Annotator "ChessBase"]
[PlyCount "32"]
[EventDate "2019.02.28"]
[EventType "swiss"]
[EventCountry "IRL"]
[SourceTitle "playchess.com"]
[Source "ChessBase"]
[SourceQuality "1"]
[TimeControl "5400+30"]

1. d4 {[%emt 0:00:00]} d5 {[%emt 0:02:27]} 2. Bf4 {[%emt 0:00:00]} Nf6 {[%emt 0:00:23]} 3. e3 {[%emt 0:00:00]} e6 {[%emt 0:01:39]} 4. Nf3 {[%emt 0:00:14]} c5 {[%emt 0:01:23]} 5. c3 {[%emt 0:00:08]} Nbd7 {[%emt 0:01:04]} 6. h3 {[%emt 0:03:34]} Be7 {[%emt 0:00:22]} 7. Nbd2 {[%emt 0:00:47]} O-O {[%emt 0:01:13]} 8. Bd3 {[%emt 0:03:02]} b6 {[%emt 0:01:38]} 9. O-O {[%emt 0:10:55]} Bb7 {[%emt 0:00:22]} 10. Qe2 {[%emt 0:00:09]} Ne4 {[%emt 0:03:28]} 11. Rfd1 {[%emt 0:02:28]} a6 {[%emt 0:09:13]} 12. Bc2 {[%emt 0:06:43]} Nxd2 {[%emt 0:02:37]} 13. Rxd2 {[%emt 0:00:14]} c4 {[%emt 0:09:23]} 14. e4 {[%emt 0:06:16]} dxe4 {[%emt 0:01:51]} 15. Bxe4 {[%emt 0:00:09]} Bxe4 {[%emt 0:00:38]} 16. Qxe4 {[%emt 0:00:03]} Nf6 {[%emt 0:01:00]} 1/2-1/2

[Event "Irish International Open 2019"]
[Site "Dublin"]
[Date "2019.04.21"]
[Round "8.4"]
[White "Saric, Ante"]
[Black "Thorfinnsson, Bjorn"]
[Result "1-0"]
[ECO "D77"]
[WhiteElo "2530"]
[BlackElo "2399"]
[Annotator "ChessBase"]
[PlyCount "95"]
[EventDate "2019.02.28"]
[EventType "swiss"]
[EventCountry "IRL"]
[SourceTitle "playchess.com"]
[Source "ChessBase"]
[SourceQuality "1"]
[TimeControl "5400+30"]

1. Nf3 {[%emt 0:00:00]} Nf6 {[%emt 0:00:00]} 2. c4 {[%emt 0:00:00]} e6 {[%emt 0:00:21]} 3. g3 {[%emt 0:00:00]} g6 {[%emt 0:00:47]} 4. Bg2 {[%emt 0:01:33]} Bg7 {[%emt 0:00:14]} 5. O-O {[%emt 0:04:49]} O-O {[%emt 0:00:19]} 6. d4 {[%emt 0:01:25]} d5 {[%emt 0:02:05]} 7. Nc3 {[%emt 0:02:29]} Nbd7 {[%emt 0:03:25]} 8. b3 {[%emt 0:01:56]} b6 {[%emt 0:12:51]} 9. cxd5 {[%emt 0:02:47]} Nxd5 {[%emt 0:01:04]} 10. Nxd5 {[%emt 0:00:45]} exd5 {[%emt 0:00:04]} 11. Bg5 {[%emt 0:02:43]} Qe8 {[%emt 0:01:59]} 12. Rc1 {[%emt 0:06:25]} Ba6 {[%emt 0:03:26]} 13. Re1 {[%emt 0:02:42]} c5 {[%emt 0:03:22]} 14. dxc5 {[%emt 0:04:56]} Nxc5 {[%emt 0:00:07]} 15. Be3 {[%emt 0:04:32]} Rd8 {[%emt 0:17:23]} 16. Bxc5 {[%emt 0:03:51]} bxc5 {[%emt 0:00:04]} 17. Rxc5 {[%emt 0:00:22]} Qe7 {[%emt 0:03:39]} 18. Ra5 {[%emt 0:11:50]} Qb7 {[%emt 0:08:45]} 19. Nd4 {[%emt 0:11:11]} Qb6 {[%emt 0:03:52]} 20. Ra4 {[%emt 0:00:34]} Rfe8 {[%emt 0:01:56]} 21. e3 {[%emt 0:04:40]} Bf8 {[%emt 0:02:34]} 22. Bf1 {[%emt 0:07:21]} Bc8 {[%emt 0:01:12]} 23. Nc2 {[%emt 0:02:33]} Re4 {[%emt 0:11:40]} 24. Rd4 {[%emt 0:02:10]} Rxd4 {[%emt 0:00:21]} 25. Nxd4 {[%emt 0:02:21]} Bb7 {[%emt 0:00:35]} 26. Re2 {[%emt 0:00:42]} Rc8 {[%emt 0:00:20]} 27. Rc2 {[%emt 0:01:23]} Rxc2 {[%emt 0:00:07]} 28. Qxc2 {[%emt 0:01:04]} Bc5 {[%emt 0:00:09]} 29. Qc3 {[%emt 0:00:37]} a6 {[%emt 0:00:22]} 30. h4 {[%emt 0:00:43]} h5 {[%emt 0:00:07]} 31. Bg2 {[%emt 0:02:09]} Bb4 {[%emt 0:00:22]} 32. Qd3 {[%emt 0:00:29]} Qa5 {[%emt 0:00:24]} 33. a4 {[%emt 0:01:22]} Bd6 {[%emt 0:00:10]} 34. Bf3 {[%emt 0:00:55]} Qe1+ {[%emt 0:02:35]} 35. Kg2 {[%emt 0:00:02]} Qa5 {[%emt 0:00:39]} 36. Ne2 {[%emt 0:01:25]} Be5 {[%emt 0:01:00]} 37. Nf4 {[%emt 0:02:21]} Bxf4 {[%emt 0:00:05]} 38. gxf4 {[%emt 0:02:44]} Qd8 {[%emt 0:00:52]} 39. Kg3 {[%emt 0:00:53]} Qd7 {[%emt 0:00:10]} 40. f5 {[%emt 0:01:06]} gxf5 {[%emt 0:02:48]} 41. Qd4 {[%emt 0:00:39]} Qd6+ {[%emt 0:03:41]} 42. Qf4 {[%emt 0:00:04]} Qb6 {[%emt 0:00:11]} 43. b4 {[%emt 0:02:27]} Bc6 {[%emt 0:01:33]} 44. a5 {[%emt 0:00:38]} Qb5 {[%emt 0:00:05]} 45. Qxf5 {[%emt 0:00:41]} Kg7 {[%emt 0:01:22]} 46. Bxh5 {[%emt 0:00:48]} Be8 {[%emt 0:13:53]} 47. Bf3 {[%emt 0:00:21]} Qxb4 {[%emt 0:00:00]} 48. Qg4+ {[%emt 0:00:25]} 1-0

[Event "Irish International Open 2019"]
[Site "Dublin"]
[Date "2019.04.21"]
[Round "8.5"]
[White "Brady, Stephen"]
[Black "Epishin, Vladimir"]
[Result "0-1"]
[ECO "A01"]
[WhiteElo "2301"]
[BlackElo "2568"]
[Annotator "ChessBase"]
[PlyCount "88"]
[EventDate "2019.02.28"]
[EventType "swiss"]
[EventCountry "IRL"]
[SourceTitle "playchess.com"]
[Source "ChessBase"]
[SourceQuality "1"]
[TimeControl "5400+30"]

1. b3 {[%emt 0:00:46]} d6 {[%emt 0:01:04]} 2. Bb2 {[%emt 0:00:07]} Nd7 {[%emt 0:00:09]} 3. Nf3 {[%emt 0:04:41]} e5 {[%emt 0:01:11]} 4. e3 {[%emt 0:01:40]} Be7 {[%emt 0:01:19]} 5. d4 {[%emt 0:00:39]} e4 {[%emt 0:02:10]} 6. Nfd2 {[%emt 0:00:05]} f5 {[%emt 0:00:56]} 7. c4 {[%emt 0:03:21]} Ndf6 {[%emt 0:03:58]} 8. Nc3 {[%emt 0:05:17]} Nh6 {[%emt 0:00:32]} 9. f3 {[%emt 0:05:49]} exf3 {[%emt 0:01:54]} 10. Qxf3 {[%emt 0:05:01]} O-O {[%emt 0:00:32]} 11. Bd3 {[%emt 0:01:18]} c6 {[%emt 0:02:56]} 12. d5 {[%emt 0:09:01]} c5 {[%emt 0:07:22]} 13. Qe2 {[%emt 0:15:33]} Nfg4 {[%emt 0:02:45]} 14. Nf3 {[%emt 0:00:54]} Bf6 {[%emt 0:01:02]} 15. Nd1 {[%emt 0:04:42]} Re8 {[%emt 0:13:41]} 16. O-O {[%emt 0:01:04]} Bxb2 {[%emt 0:02:08]} 17. Qxb2 {[%emt 0:00:07]} Nxe3 {[%emt 0:00:22]} 18. Nxe3 {[%emt 0:03:19]} Rxe3 {[%emt 0:00:08]} 19. Qd2 {[%emt 0:01:03]} Re8 {[%emt 0:00:11]} 20. Rae1 {[%emt 0:00:41]} Bd7 {[%emt 0:00:16]} 21. Rxe8+ {[%emt 0:03:06]} Qxe8 {[%emt 0:00:32]} 22. Qf4 {[%emt 0:12:20]} Qf8 {[%emt 0:02:45]} 23. Re1 {[%emt 0:00:15]} Qf6 {[%emt 0:05:26]} 24. h3 {[%emt 0:08:59]} Re8 {[%emt 0:03:59]} 25. Rxe8+ {[%emt 0:01:41]} Bxe8 {[%emt 0:00:01]} 26. Ng5 {[%emt 0:00:24]} Qe5 {[%emt 0:05:26]} 27. Qxe5 {[%emt 0:02:13]} dxe5 {[%emt 0:00:02]} 28. Ne6 {[%emt 0:03:23]} b6 {[%emt 0:00:29]} 29. a3 {[%emt 0:00:11]} Bd7 {[%emt 0:01:36]} 30. Nc7 {[%emt 0:00:22]} Kf8 {[%emt 0:01:22]} 31. b4 {[%emt 0:03:43]} Ke7 {[%emt 0:00:14]} 32. bxc5 {[%emt 0:00:16]} bxc5 {[%emt 0:00:10]} 33. Nb5 {[%emt 0:01:38]} a5 {[%emt 0:03:14]} 34. Nc3 {[%emt 0:00:22]} Nf7 {[%emt 0:00:21]} 35. Kf2 {[%emt 0:00:23]} Nd6 {[%emt 0:00:34]} 36. h4 {[%emt 0:00:24]} g6 {[%emt 0:00:42]} 37. g3 {[%emt 0:00:14]} h6 {[%emt 0:00:09]} 38. Ke3 {[%emt 0:00:34]} g5 {[%emt 0:00:29]} 39. hxg5 {[%emt 0:00:05]} hxg5 {[%emt 0:00:05]} 40. Be2 {[%emt 0:01:10]} f4+ {[%emt 0:01:53]} 41. gxf4 {[%emt 0:00:20]} exf4+ {[%emt 0:00:05]} 42. Kf3 {[%emt 0:01:47]} Kf6 {[%emt 0:00:16]} 43. Nb5 {[%emt 0:00:47]} Ke5 {[%emt 0:00:14]} 44. Nxd6 {[%emt 0:00:09]} g4+ {[%emt 0:00:05]} 0-1

[Event "Irish International Open 2019"]
[Site "Dublin"]
[Date "2019.04.21"]
[Round "8.6"]
[White "Jackson, James P"]
[Black "Han, Yichen"]
[Result "1-0"]
[ECO "B21"]
[WhiteElo "2388"]
[BlackElo "2190"]
[Annotator "NA"]
[PlyCount "61"]
[EventDate "2019.02.28"]
[EventType "swiss"]
[EventCountry "IRL"]
[SourceTitle "playchess.com"]
[Source "ChessBase"]
[SourceQuality "1"]
[TimeControl "5400+30"]

1. e4 {[%emt 0:00:00]} c5 {[%emt 0:00:00]} 2. d4 {[%emt 0:00:00]} cxd4 {[%emt 0:00:00]} 3. c3 {[%emt 0:00:00]} dxc3 {[%emt 0:00:06]} 4. Nxc3 {[%emt 0:00:00]} Nc6 {[%emt 0:00:37]} 5. Nf3 {[%emt 0:00:00]} e6 {[%emt 0:00:36]} 6. Bc4 {[%emt 0:00:00]} Qc7 {[%emt 0:00:26]} 7. O-O {[%emt 0:00:24]} Nf6 {[%emt 0:00:47]} 8. Nb5 {[%emt 0:00:45]} Qb8 {[%emt 0:01:09]} 9. e5 {[%emt 0:00:05]} a6 {[%emt 0:08:58]} 10. exf6 {[%emt 0:00:46]} axb5 {[%emt 0:00:10]} 11. fxg7 {[%emt 0:00:04]} Bxg7 {[%emt 0:00:07]} 12. Bxb5 {[%emt 0:00:05]} d6 {[%emt 0:09:16]} 13. Be3 {[%emt 0:05:36]} Bd7 {[%emt 0:02:18]} 14. Qd2 {[%emt 0:05:49]} Ne5 {[%emt 0:09:40]} 15. Bxd7+ {[%emt 0:00:42]} Nxd7 {[%emt 0:00:09]} 16. Bh6 {[%emt 0:02:41]} Bxh6 {[%emt 0:03:42]} 17. Qxh6 {[%emt 0:00:03]} Qd8 {[%emt 0:00:14]} 18. Rfd1 {[%emt 0:00:53]} d5 {[%emt 0:06:40]} 19. Rxd5 {[%emt 0:06:34]} exd5 {[%emt 0:00:29]} 20. Re1+ {[%emt 0:00:05]} Qe7 {[%emt 0:00:08]} 21. Rxe7+ {[%emt 0:00:05]} Kxe7 {[%emt 0:00:04]} 22. Qg5+ {[%emt 0:00:14]} Kd6 {[%emt 0:07:46]} 23. Qf4+ {[%emt 0:00:26]} Ke7 {[%emt 0:00:41]} 24. Qb4+ {[%emt 0:01:56]} Kd8 {[%emt 0:01:06]} 25. Qxb7 {[%emt 0:08:50]} Rxa2 {[%emt 0:01:05]} 26. g3 {[%emt 0:00:05]} Re8 {[%emt 0:01:50]} 27. Nd4 {[%emt 0:02:19]} Ke7 {[%emt 0:02:10]} 28. Qxd5 {[%emt 0:04:19]} Rxb2 {[%emt 0:01:24]} 29. Nc6+ {[%emt 0:00:12]} Kf8 {[%emt 0:00:53]} 30. Qd6+ {[%emt 0:00:52]} Kg8 {[%emt 0:00:08]} 31. Qxd7 {[%emt 0:00:23]} 1-0

[Event "Irish International Open 2019"]
[Site "Dublin"]
[Date "2019.04.21"]
[Round "8.7"]
[White "Longson, Alexander"]
[Black "De Verdier, Michael"]
[Result "1/2-1/2"]
[ECO "C09"]
[WhiteElo "2318"]
[BlackElo "2306"]
[Annotator "NA"]
[PlyCount "32"]
[EventDate "2019.02.28"]
[EventType "swiss"]
[EventCountry "IRL"]
[SourceTitle "playchess.com"]
[Source "ChessBase"]
[SourceQuality "1"]
[TimeControl "5400+30"]

1. e4 {[%emt 0:00:00]} e6 {[%emt 0:00:00]} 2. d4 {[%emt 0:00:14]} d5 {[%emt 0:00:00]} 3. Nd2 {[%emt 0:00:17]} c5 {[%emt 0:00:00]} 4. exd5 {[%emt 0:01:12]} exd5 {[%emt 0:00:00]} 5. Ngf3 {[%emt 0:01:34]} Nc6 {[%emt 0:00:09]} 6. dxc5 {[%emt 0:02:07]} Bxc5 {[%emt 0:00:14]} 7. Nb3 {[%emt 0:01:14]} Bb6 {[%emt 0:02:27]} 8. Bd3 {[%emt 0:04:13]} Nf6 {[%emt 0:02:57]} 9. O-O {[%emt 0:01:13]} O-O {[%emt 0:00:06]} 10. Bg5 {[%emt 0:06:09]} Bg4 {[%emt 0:04:29]} 11. Re1 {[%emt 0:04:41]} Qd6 {[%emt 0:05:13]} 12. Bh4 {[%emt 0:06:50]} Rfe8 {[%emt 0:05:29]} 13. Bg3 {[%emt 0:12:14]} Rxe1+ {[%emt 0:01:16]} 14. Qxe1 {[%emt 0:00:29]} Qe6 {[%emt 0:01:44]} 15. Qxe6 {[%emt 0:04:16]} Bxe6 {[%emt 0:02:38]} 16. c3 {[%emt 0:09:53]} Ne4 {[%emt 0:03:16]} 1/2-1/2

[Event "Irish International Open 2019"]
[Site "Dublin"]
[Date "2019.04.21"]
[Round "8.9"]
[White "Li, Henry"]
[Black "Doyle, Hugh"]
[Result "1/2-1/2"]
[ECO "B14"]
[WhiteElo "2308"]
[BlackElo "2042"]
[Annotator "ChessBase"]
[PlyCount "98"]
[EventDate "2019.02.28"]
[EventType "swiss"]
[EventCountry "IRL"]
[SourceTitle "playchess.com"]
[Source "ChessBase"]
[SourceQuality "1"]
[TimeControl "5400+30"]

1. e4 {[%emt 0:00:00]} c6 {[%emt 0:13:03]} 2. d4 {[%emt 0:00:00]} d5 {[%emt 0:00:06]} 3. exd5 {[%emt 0:00:00]} cxd5 {[%emt 0:00:14]} 4. c4 {[%emt 0:00:22]} e6 {[%emt 0:00:27]} 5. Nf3 {[%emt 0:00:12]} Nc6 {[%emt 0:00:28]} 6. Nc3 {[%emt 0:00:31]} Nf6 {[%emt 0:00:26]} 7. cxd5 {[%emt 0:00:27]} exd5 {[%emt 0:02:05]} 8. Bd3 {[%emt 0:00:17]} Be7 {[%emt 0:01:14]} 9. h3 {[%emt 0:00:13]} O-O {[%emt 0:00:43]} 10. O-O {[%emt 0:00:07]} Be6 {[%emt 0:02:51]} 11. Re1 {[%emt 0:00:24]} Re8 {[%emt 0:03:20]} 12. Bg5 {[%emt 0:00:31]} Nd7 {[%emt 0:07:09]} 13. Bxe7 {[%emt 0:06:30]} Rxe7 {[%emt 0:03:44]} 14. Qd2 {[%emt 0:02:00]} Nf8 {[%emt 0:02:42]} 15. Ne5 {[%emt 0:05:32]} Nb4 {[%emt 0:09:42]} 16. Bb5 {[%emt 0:10:44]} f6 {[%emt 0:02:01]} 17. Nf3 {[%emt 0:02:19]} Qd6 {[%emt 0:10:01]} 18. a3 {[%emt 0:03:52]} Nc6 {[%emt 0:00:34]} 19. b4 {[%emt 0:00:48]} a6 {[%emt 0:01:29]} 20. Bxc6 {[%emt 0:08:10]} Qxc6 {[%emt 0:02:40]} 21. Rac1 {[%emt 0:00:32]} Qd6 {[%emt 0:04:14]} 22. Na4 {[%emt 0:01:23]} Nd7 {[%emt 0:01:01]} 23. Qc3 {[%emt 0:07:36]} b5 {[%emt 0:03:55]} 24. Qc6 {[%emt 0:00:58]} Qxc6 {[%emt 0:00:33]} 25. Rxc6 {[%emt 0:00:06]} bxa4 {[%emt 0:12:42]} 26. Rcxe6 {[%emt 0:00:16]} Rxe6 {[%emt 0:00:21]} 27. Rxe6 {[%emt 0:00:05]} a5 {[%emt 0:03:52]} 28. bxa5 {[%emt 0:01:57]} Rxa5 {[%emt 0:00:18]} 29. Rd6 {[%emt 0:00:19]} Nf8 {[%emt 0:00:46]} 30. Rb6 {[%emt 0:03:28]} Ng6 {[%emt 0:02:21]} 31. g3 {[%emt 0:01:07]} Ne7 {[%emt 0:02:12]} 32. Kf1 {[%emt 0:01:04]} Ra7 {[%emt 0:01:44]} 33. Ke2 {[%emt 0:01:18]} Kf7 {[%emt 0:02:50]} 34. Kd3 {[%emt 0:08:19]} h5 {[%emt 0:02:13]} 35. Nd2 {[%emt 0:00:59]} h4 {[%emt 0:01:01]} 36. Nb1 {[%emt 0:01:26]} Nf5 {[%emt 0:01:08]} 37. g4 {[%emt 0:00:46]} Ne7 {[%emt 0:00:36]} 38. Nc3 {[%emt 0:00:14]} Ra5 {[%emt 0:01:30]} 39. Rb5 {[%emt 0:02:53]} Rxb5 {[%emt 0:00:32]} 40. Nxb5 {[%emt 0:00:06]} g5 {[%emt 0:00:14]} 41. Nc3 {[%emt 0:00:40]} Ke6 {[%emt 0:00:10]} 42. Nxa4 {[%emt 0:04:05]} Ng6 {[%emt 0:00:10]} 43. Nc5+ {[%emt 0:00:36]} Kd6 {[%emt 0:00:06]} 44. Ke3 {[%emt 0:00:14]} Nf4 {[%emt 0:00:10]} 45. Nd3 {[%emt 0:00:19]} Nxh3 {[%emt 0:00:23]} 46. f3 {[%emt 0:00:23]} Kc6 {[%emt 0:01:21]} 47. Nb4+ {[%emt 0:06:42]} Kd6 {[%emt 0:00:05]} 48. Nd3 {[%emt 0:00:07]} Kc6 {[%emt 0:00:06]} 49. Nb4+ {[%emt 0:08:11]} Kd6 {[%emt 0:00:06] Ke4 [%clk 0:00:00]} 1/2-1/2

[Event "Irish International Open 2019"]
[Site "Dublin"]
[Date "2019.04.21"]
[Round "8.10"]
[White "Moran, Stephen"]
[Black "Burns-Mannion, Stephen"]
[Result "0-1"]
[ECO "D20"]
[WhiteElo "2165"]
[BlackElo "2285"]
[Annotator "NA"]
[PlyCount "60"]
[EventDate "2019.02.28"]
[EventType "swiss"]
[EventCountry "IRL"]
[SourceTitle "playchess.com"]
[Source "ChessBase"]
[SourceQuality "1"]
[TimeControl "5400+30"]

1. d4 {[%emt 0:00:00]} d5 {[%emt 0:00:00]} 2. c4 {[%emt 0:00:00]} dxc4 {[%emt 0:00:00]} 3. e4 {[%emt 0:00:04]} e5 {[%emt 0:00:00]} 4. Nf3 {[%emt 0:00:06]} exd4 {[%emt 0:00:33]} 5. Bxc4 {[%emt 0:00:08]} Bb4+ {[%emt 0:00:09]} 6. Nbd2 {[%emt 0:00:14]} Nc6 {[%emt 0:00:54]} 7. O-O {[%emt 0:00:26]} Nf6 {[%emt 0:00:23]} 8. e5 {[%emt 0:03:56]} Nd5 {[%emt 0:00:12]} 9. Nb3 {[%emt 0:04:58]} Nb6 {[%emt 0:00:38]} 10. Bg5 {[%emt 0:04:41]} Be7 {[%emt 0:00:57]} 11. Bxe7 {[%emt 0:00:46]} Qxe7 {[%emt 0:05:47]} 12. Bb5 {[%emt 0:01:06]} Bd7 {[%emt 0:16:00]} 13. Bxc6 {[%emt 0:02:27]} Bxc6 {[%emt 0:00:18]} 14. Nfxd4 {[%emt 0:01:16]} Bd5 {[%emt 1:11:09]} 15. Qg4 {[%emt 0:03:32]} g6 {[%emt 0:00:00]} 16. Rfe1 {[%emt 0:02:12]} c5 {[%emt 0:00:00]} 17. Nb5 {[%emt 0:13:21]} O-O {[%emt 0:00:00]} 18. Qf4 {[%emt 0:14:27]} Be6 {[%emt 0:00:00]} 19. Rad1 {[%emt 0:10:23]} Nd5 {[%emt 0:00:00]} 20. Qf3 {[%emt 0:07:54]} Nb4 {[%emt 0:00:00]} 21. a3 {[%emt 0:02:33]} Nc6 {[%emt 0:00:00]} 22. Nd6 {[%emt 0:01:34]} Bxb3 {[%emt 0:00:00]} 23. Qxb3 {[%emt 0:00:11]} b6 {[%emt 0:00:00]} 24. f4 {[%emt 0:12:41]} Nd4 {[%emt 0:00:00]} 25. Qd5 {[%emt 0:02:00]} Qe6 {[%emt 0:00:00]} 26. Qe4 {[%emt 0:01:43]} f5 {[%emt 0:00:00]} 27. Qd3 {[%emt 0:02:10]} Rad8 {[%emt 0:00:00]} 28. Kf2 {[%emt 0:03:03]} a5 {[%emt 0:00:00]} 29. Qc4 {[%emt 0:00:36]} Rxd6 {[%emt 0:00:00]} 30. Rxd4 {[%emt 0:00:33]} cxd4 {[%emt 0:00:00]} 0-1